[Event "Titled Tuesday Blitz August 24 2021"]
[White "Tomaszewski, Kacper"]
[Black "Krysa, Leandro"]
[WhiteFideId "1127373"]
[BlackFideId "116807"]
[WhiteElo "2153"]
[BlackElo "2490"]
[Result "0-1"]
[Round "02"]
[TimeControl "180+1"]
[Date "2021.08.24"]
[WhiteClock "0:00:02"]
[BlackClock "0:00:09"]

1. d4 {[%clk 0:03:00]}  Nf6 {[%clk 0:03:00]} 2. c4 {[%clk 0:03:01]}  g6 {[%clk 0:03:00]} 3. Nc3 {[%clk 0:03:01]}  Bg7 {[%clk 0:03:00]} 4. e4 {[%clk 0:03:02]}  d6 {[%clk 0:03:00]} 5. Be2 {[%clk 0:03:02]}  O-O {[%clk 0:02:58]} 6. Be3 {[%clk 0:03:03]}  Nc6 {[%clk 0:02:54]} 7. Nf3 {[%clk 0:03:03]}  Bg4 {[%clk 0:02:51]} 8. d5 {[%clk 0:02:56]}  Bxf3 {[%clk 0:02:48]} 9. Bxf3 {[%clk 0:02:54]}  Ne5 {[%clk 0:02:49]} 10. Be2 {[%clk 0:02:54]}  c6 {[%clk 0:02:49]} 11. f4 {[%clk 0:02:51]}  Ned7 {[%clk 0:02:47]} 12. O-O {[%clk 0:02:50]}  cxd5 {[%clk 0:02:45]} 13. cxd5 {[%clk 0:02:49]}  a6 {[%clk 0:02:45]} 14. a4 {[%clk 0:02:45]}  Qa5 {[%clk 0:02:36]} 15. Bf3 {[%clk 0:02:18]}  Rfc8 {[%clk 0:02:33]} 16. Kh1 {[%clk 0:01:58]}  Qb4 {[%clk 0:02:21]} 17. Qd2 {[%clk 0:01:44]}  Nc5 {[%clk 0:02:06]} 18. Rae1 {[%clk 0:01:32]}  Nfd7 {[%clk 0:01:51]} 19. Bg4 {[%clk 0:01:13]}  Rc7 {[%clk 0:01:43]} 20. e5 {[%clk 0:01:05]}  dxe5 {[%clk 0:01:31]} 21. d6 {[%clk 0:01:05]}  exd6 {[%clk 0:01:18]} 22. Nd5 {[%clk 0:00:44]}  Qxd2 {[%clk 0:01:14]} 23. Bxd2 {[%clk 0:00:45]}  Rc6 {[%clk 0:01:07]} 24. Ne7+ {[%clk 0:00:42]}  Kf8 {[%clk 0:01:08]} 25. Nxc6 {[%clk 0:00:42]}  bxc6 {[%clk 0:01:09]} 26. Bb4 {[%clk 0:00:38]}  f5 {[%clk 0:01:02]} 27. fxe5 {[%clk 0:00:38]}  Bxe5 {[%clk 0:01:01]} 28. Bc3 {[%clk 0:00:18]}  Bxc3 {[%clk 0:00:54]} 29. bxc3 {[%clk 0:00:19]}  Nxa4 {[%clk 0:00:54]} 30. Bf3 {[%clk 0:00:20]}  Ne5 {[%clk 0:00:53]} 31. Re3 {[%clk 0:00:15]}  Nc5 {[%clk 0:00:47]} 32. Rd1 {[%clk 0:00:14]}  Ke7 {[%clk 0:00:46]} 33. Bxc6 {[%clk 0:00:14]}  Rb8 {[%clk 0:00:43]} 34. Bd5 {[%clk 0:00:14]}  a5 {[%clk 0:00:38]} 35. c4 {[%clk 0:00:14]}  a4 {[%clk 0:00:37]} 36. Ra3 {[%clk 0:00:14]}  Rb2 {[%clk 0:00:35]} 37. Rda1 {[%clk 0:00:13]}  h5 {[%clk 0:00:30]} 38. h3 {[%clk 0:00:13]}  h4 {[%clk 0:00:30]} 39. R3a2 {[%clk 0:00:11]}  Rb4 {[%clk 0:00:24]} 40. Ra3 {[%clk 0:00:10]}  g5 {[%clk 0:00:24]} 41. g3 {[%clk 0:00:09]}  Kf6 {[%clk 0:00:17]} 42. gxh4 {[%clk 0:00:10]}  gxh4 {[%clk 0:00:18]} 43. Rg1 {[%clk 0:00:09]}  Rb2 {[%clk 0:00:16]} 44. Rg2 {[%clk 0:00:09]}  Rb1+ {[%clk 0:00:15]} 45. Kh2 {[%clk 0:00:09]}  Rb3 {[%clk 0:00:12]} 46. Rxb3 {[%clk 0:00:09]}  axb3 {[%clk 0:00:12]} 47. Rb2 {[%clk 0:00:09]}  Ned3 {[%clk 0:00:12]} 48. Rb1 {[%clk 0:00:09]}  Ke5 {[%clk 0:00:12]} 49. Bf3 {[%clk 0:00:08]}  Kd4 {[%clk 0:00:11]} 50. Be2 {[%clk 0:00:07]}  b2 {[%clk 0:00:10]} 51. Kg2 {[%clk 0:00:04]}  Kc3 {[%clk 0:00:09]} 52. Kf3 {[%clk 0:00:04]}  Kc2 {[%clk 0:00:09]} 53. Bxd3+ {[%clk 0:00:01]}  Nxd3 {[%clk 0:00:09]} 54. Rxb2+ {[%clk 0:00:01]}  Kxb2 {[%clk 0:00:09]} 55. Ke3 {[%clk 0:00:02]}  Kc3 {[%clk 0:00:09]} 56. c5 {[%clk 0:00:02]}  dxc5 {[%clk 0:00:09]} 0-1


[Site "https://www.chess.com"]

[Event "Titled Tuesday Blitz August 24 2021"]
[White "Tristan, Leonardo"]
[Black "Al Hosani, Omran"]
[WhiteFideId "113816"]
[BlackFideId "9308733"]
[WhiteElo "2782"]
[BlackElo "2528"]
[Result "1-0"]
[Round "02"]
[TimeControl "180+1"]
[Date "2021.08.24"]
[WhiteClock "0:00:04"]
[BlackClock "0:00:06"]

1. d4 {[%clk 0:03:00]}  Nf6 {[%clk 0:02:59]} 2. Nf3 {[%clk 0:03:00]}  g6 {[%clk 0:03:00]} 3. Bf4 {[%clk 0:03:00]}  Bg7 {[%clk 0:03:00]} 4. e3 {[%clk 0:03:01]}  d5 {[%clk 0:03:01]} 5. Be2 {[%clk 0:03:01]}  O-O {[%clk 0:03:01]} 6. O-O {[%clk 0:03:01]}  c5 {[%clk 0:03:02]} 7. c3 {[%clk 0:03:01]}  Nc6 {[%clk 0:03:02]} 8. h3 {[%clk 0:02:55]}  b6 {[%clk 0:02:58]} 9. Nbd2 {[%clk 0:02:46]}  Bb7 {[%clk 0:02:58]} 10. Qb3 {[%clk 0:02:37]}  Re8 {[%clk 0:02:46]} 11. dxc5 {[%clk 0:02:35]}  Na5 {[%clk 0:02:46]} 12. Qa3 {[%clk 0:02:30]}  bxc5 {[%clk 0:02:41]} 13. Qxc5 {[%clk 0:02:30]}  Nd7 {[%clk 0:02:38]} 14. Qa3 {[%clk 0:02:23]}  e5 {[%clk 0:02:38]} 15. Bh2 {[%clk 0:02:20]}  Qb6 {[%clk 0:02:34]} 16. Nb3 {[%clk 0:01:45]}  Nc4 {[%clk 0:02:32]} 17. Bxc4 {[%clk 0:01:35]}  dxc4 {[%clk 0:02:32]} 18. Nbd2 {[%clk 0:01:25]}  Bd5 {[%clk 0:02:00]} 19. e4 {[%clk 0:01:20]}  Bf8 {[%clk 0:01:57]} 20. Qa4 {[%clk 0:01:20]}  Nc5 {[%clk 0:01:46]} 21. Qc2 {[%clk 0:01:13]}  Be6 {[%clk 0:01:28]} 22. Nxe5 {[%clk 0:01:13]}  Qb5 {[%clk 0:01:28]} 23. Ndf3 {[%clk 0:00:47]}  Nd3 {[%clk 0:01:24]} 24. Nxd3 {[%clk 0:00:33]}  cxd3 {[%clk 0:01:25]} 25. Qd2 {[%clk 0:00:34]}  Rad8 {[%clk 0:01:21]} 26. Nd4 {[%clk 0:00:33]}  Qa6 {[%clk 0:01:19]} 27. Rfd1 {[%clk 0:00:32]}  Qb7 {[%clk 0:01:08]} 28. Qxd3 {[%clk 0:00:27]}  Qxb2 {[%clk 0:01:08]} 29. Rdb1 {[%clk 0:00:27]}  Qa3 {[%clk 0:01:08]} 30. Qc2 {[%clk 0:00:13]}  Bc4 {[%clk 0:00:54]} 31. Nb5 {[%clk 0:00:09]}  Qa6 {[%clk 0:00:51]} 32. Nc7 {[%clk 0:00:09]}  Bd3 {[%clk 0:00:49]} 33. Qc1 {[%clk 0:00:04]}  Qc6 {[%clk 0:00:46]} 34. Nxe8 {[%clk 0:00:03]}  Rxe8 {[%clk 0:00:39]} 35. f3 {[%clk 0:00:04]}  Bc5+ {[%clk 0:00:32]} 36. Kh1 {[%clk 0:00:04]}  Bxb1 {[%clk 0:00:31]} 37. Rxb1 {[%clk 0:00:05]}  Rd8 {[%clk 0:00:31]} 38. Bg1 {[%clk 0:00:05]}  Bd6 {[%clk 0:00:31]} 39. Be3 {[%clk 0:00:06]}  Bc7 {[%clk 0:00:30]} 40. Bf4 {[%clk 0:00:06]}  Bb6 {[%clk 0:00:25]} 41. Qc2 {[%clk 0:00:06]}  Rc8 {[%clk 0:00:24]} 42. Be5 {[%clk 0:00:05]}  Qc5 {[%clk 0:00:22]} 43. Bf6 {[%clk 0:00:04]}  Qc6 {[%clk 0:00:21]} 44. e5 {[%clk 0:00:05]}  h5 {[%clk 0:00:20]} 45. Qd2 {[%clk 0:00:04]}  Qxc3 {[%clk 0:00:17]} 46. Qh6 {[%clk 0:00:04]}  Qxe5 {[%clk 0:00:06]} 47. Qg7# {[%clk 0:00:04]} 1-0


[Site "https://www.chess.com"]

[Event "Titled Tuesday Blitz August 24 2021"]
[White "Vakhidov, Shahzod"]
[Black "Krivonosov, Oleg"]
[WhiteFideId "14205270"]
[BlackFideId "11600349"]
[WhiteElo "1988"]
[BlackElo "2469"]
[Result "0-1"]
[Round "02"]
[TimeControl "180+1"]
[Date "2021.08.24"]
[WhiteClock "0:00:03"]
[BlackClock "0:00:17"]

1. c4 {[%clk 0:02:52]}  e6 {[%clk 0:02:59]} 2. g3 {[%clk 0:02:53]}  d5 {[%clk 0:02:59]} 3. Nf3 {[%clk 0:02:54]}  Nf6 {[%clk 0:02:59]} 4. Bg2 {[%clk 0:02:55]}  Be7 {[%clk 0:02:58]} 5. O-O {[%clk 0:02:55]}  O-O {[%clk 0:02:57]} 6. d4 {[%clk 0:02:56]}  Nbd7 {[%clk 0:02:56]} 7. Nc3 {[%clk 0:02:54]}  dxc4 {[%clk 0:02:55]} 8. a4 {[%clk 0:02:53]}  Nd5 {[%clk 0:02:52]} 9. Nd2 {[%clk 0:02:49]}  c5 {[%clk 0:02:51]} 10. Nxc4 {[%clk 0:02:47]}  cxd4 {[%clk 0:02:47]} 11. Nxd5 {[%clk 0:02:29]}  exd5 {[%clk 0:02:46]} 12. Bxd5 {[%clk 0:02:30]}  Nb6 {[%clk 0:02:40]} 13. Nxb6 {[%clk 0:02:25]}  Qxb6 {[%clk 0:02:40]} 14. Qb3 {[%clk 0:02:21]}  Qxb3 {[%clk 0:02:36]} 15. Bxb3 {[%clk 0:02:21]}  Bh3 {[%clk 0:02:30]} 16. Rd1 {[%clk 0:02:20]}  Bf6 {[%clk 0:02:30]} 17. Bd5 {[%clk 0:02:08]}  Rfd8 {[%clk 0:02:20]} 18. Bxb7 {[%clk 0:02:04]}  Rab8 {[%clk 0:02:20]} 19. Bg2 {[%clk 0:01:59]}  Bg4 {[%clk 0:02:16]} 20. f3 {[%clk 0:01:58]}  Be6 {[%clk 0:02:15]} 21. e4 {[%clk 0:01:45]}  Bb3 {[%clk 0:01:57]} 22. Re1 {[%clk 0:01:36]}  d3 {[%clk 0:01:55]} 23. e5 {[%clk 0:01:36]}  Be7 {[%clk 0:01:50]} 24. Bd2 {[%clk 0:01:35]}  Bc5+ {[%clk 0:01:45]} 25. Kh1 {[%clk 0:01:35]}  Bd4 {[%clk 0:01:45]} 26. Bc1 {[%clk 0:01:20]}  Bc2 {[%clk 0:01:40]} 27. Ra2 {[%clk 0:01:14]}  Bf2 {[%clk 0:01:33]} 28. Rf1 {[%clk 0:01:06]}  d2 {[%clk 0:01:33]} 29. Bxd2 {[%clk 0:01:04]}  Rxd2 {[%clk 0:01:33]} 30. b3 {[%clk 0:01:01]}  Rbd8 {[%clk 0:01:28]} 31. f4 {[%clk 0:01:00]}  Bxb3 {[%clk 0:01:23]} 32. Raa1 {[%clk 0:00:56]}  Bd5 {[%clk 0:01:14]} 33. Rab1 {[%clk 0:00:47]}  g6 {[%clk 0:01:06]} 34. Bxd5 {[%clk 0:00:42]}  R8xd5 {[%clk 0:01:05]} 35. Rb7 {[%clk 0:00:43]}  Bb6 {[%clk 0:01:02]} 36. Rc1 {[%clk 0:00:38]}  Rd1+ {[%clk 0:00:57]} 37. Rxd1 {[%clk 0:00:39]}  Rxd1+ {[%clk 0:00:58]} 38. Kg2 {[%clk 0:00:39]}  Ra1 {[%clk 0:00:57]} 39. Rb8+ {[%clk 0:00:34]}  Kg7 {[%clk 0:00:56]} 40. Rb7 {[%clk 0:00:35]}  Kf8 {[%clk 0:00:56]} 41. Rb8+ {[%clk 0:00:35]}  Ke7 {[%clk 0:00:55]} 42. g4 {[%clk 0:00:32]}  Rxa4 {[%clk 0:00:53]} 43. Kf3 {[%clk 0:00:31]}  Rd4 {[%clk 0:00:51]} 44. Rh8 {[%clk 0:00:28]}  Rd3+ {[%clk 0:00:48]} 45. Ke4 {[%clk 0:00:27]}  Re3+ {[%clk 0:00:47]} 46. Kd5 {[%clk 0:00:27]}  Rh3 {[%clk 0:00:44]} 47. f5 {[%clk 0:00:21]}  gxf5 {[%clk 0:00:44]} 48. gxf5 {[%clk 0:00:21]}  f6 {[%clk 0:00:39]} 49. e6 {[%clk 0:00:20]}  Rh5 {[%clk 0:00:38]} 50. Ke4 {[%clk 0:00:18]}  Rxh2 {[%clk 0:00:36]} 51. Rb8 {[%clk 0:00:17]}  Rh4+ {[%clk 0:00:35]} 52. Kd5 {[%clk 0:00:17]}  Rd4+ {[%clk 0:00:34]} 53. Kc6 {[%clk 0:00:16]}  Rd6+ {[%clk 0:00:34]} 54. Kb5 {[%clk 0:00:16]}  Rd8 {[%clk 0:00:33]} 55. Rb7+ {[%clk 0:00:15]}  Kd6 {[%clk 0:00:33]} 56. Rxh7 {[%clk 0:00:15]}  Ke5 {[%clk 0:00:33]} 57. Rh5 {[%clk 0:00:15]}  Kd5 {[%clk 0:00:30]} 58. Ka6 {[%clk 0:00:13]}  Bd4 {[%clk 0:00:29]} 59. Rh7 {[%clk 0:00:12]}  Ke5 {[%clk 0:00:27]} 60. Rf7 {[%clk 0:00:08]}  Bb6 {[%clk 0:00:22]} 61. Rb7 {[%clk 0:00:02]}  Kxf5 {[%clk 0:00:21]} 62. e7 {[%clk 0:00:02]}  Re8 {[%clk 0:00:21]} 63. Rd7 {[%clk 0:00:02]}  Ke6 {[%clk 0:00:20]} 64. Rd1 {[%clk 0:00:02]}  Rxe7 {[%clk 0:00:20]} 65. Rf1 {[%clk 0:00:03]}  f5 {[%clk 0:00:20]} 66. Rf3 {[%clk 0:00:03]}  Kf6 {[%clk 0:00:20]} 67. Rf1 {[%clk 0:00:03]}  Be3 {[%clk 0:00:20]} 68. Rh1 {[%clk 0:00:04]}  f4 {[%clk 0:00:19]} 69. Rh6+ {[%clk 0:00:04]}  Kf5 {[%clk 0:00:19]} 70. Rh5+ {[%clk 0:00:05]}  Ke4 {[%clk 0:00:19]} 71. Rh4 {[%clk 0:00:04]}  Rf7 {[%clk 0:00:19]} 72. Rh6 {[%clk 0:00:04]}  Kd3 {[%clk 0:00:18]} 73. Rd6+ {[%clk 0:00:04]}  Ke2 {[%clk 0:00:18]} 74. Rd5 {[%clk 0:00:03]}  f3 {[%clk 0:00:18]} 75. Rb5 {[%clk 0:00:03]}  f2 {[%clk 0:00:18]} 76. Rb2+ {[%clk 0:00:03]}  Bd2 {[%clk 0:00:17]} 77. Rb5 {[%clk 0:00:03]}  f1=Q {[%clk 0:00:17]} 0-1


[Site "https://www.chess.com"]

[Event "Titled Tuesday Blitz August 24 2021"]
[White "Vasli, Aref"]
[Black "Nimrod_Veinberg"]
[WhiteFideId "417521"]
[WhiteElo "2257"]
[BlackElo "2702"]
[Result "1-0"]
[Round "02"]
[TimeControl "180+1"]
[Date "2021.08.24"]
[WhiteClock "0:00:06"]
[BlackClock "0:00:07"]

1. e4 {[%clk 0:03:00]}  e5 {[%clk 0:02:57]} 2. Nf3 {[%clk 0:03:00]}  Nc6 {[%clk 0:02:57]} 3. Bb5 {[%clk 0:03:01]}  a6 {[%clk 0:02:57]} 4. Ba4 {[%clk 0:03:01]}  Nf6 {[%clk 0:02:58]} 5. O-O {[%clk 0:03:01]}  Be7 {[%clk 0:02:58]} 6. Re1 {[%clk 0:03:01]}  b5 {[%clk 0:02:58]} 7. Bb3 {[%clk 0:03:02]}  O-O {[%clk 0:02:59]} 8. d3 {[%clk 0:02:58]}  d6 {[%clk 0:02:15]} 9. a3 {[%clk 0:02:54]}  Na5 {[%clk 0:02:07]} 10. Ba2 {[%clk 0:02:53]}  c5 {[%clk 0:02:08]} 11. Nc3 {[%clk 0:02:52]}  Be6 {[%clk 0:02:07]} 12. Bg5 {[%clk 0:02:43]}  Nc6 {[%clk 0:02:05]} 13. Bxf6 {[%clk 0:02:43]}  Bxf6 {[%clk 0:02:03]} 14. Nd5 {[%clk 0:02:43]}  g6 {[%clk 0:01:49]} 15. c3 {[%clk 0:02:31]}  Bg7 {[%clk 0:01:48]} 16. Qd2 {[%clk 0:02:16]}  h6 {[%clk 0:01:47]} 17. d4 {[%clk 0:01:56]}  cxd4 {[%clk 0:01:45]} 18. cxd4 {[%clk 0:01:56]}  Nxd4 {[%clk 0:01:45]} 19. Nxd4 {[%clk 0:01:53]}  exd4 {[%clk 0:01:44]} 20. Rac1 {[%clk 0:01:54]}  Rc8 {[%clk 0:01:36]} 21. h3 {[%clk 0:01:35]}  Kh7 {[%clk 0:01:31]} 22. f4 {[%clk 0:01:31]}  Rxc1 {[%clk 0:01:25]} 23. Rxc1 {[%clk 0:01:28]}  f5 {[%clk 0:01:25]} 24. exf5 {[%clk 0:01:28]}  Rxf5 {[%clk 0:01:25]} 25. Nb4 {[%clk 0:01:06]}  Bxa2 {[%clk 0:01:24]} 26. Nxa2 {[%clk 0:01:07]}  Qf8 {[%clk 0:01:24]} 27. Rf1 {[%clk 0:01:05]}  g5 {[%clk 0:01:23]} 28. Qd3 {[%clk 0:01:05]}  Kh8 {[%clk 0:01:23]} 29. Nb4 {[%clk 0:01:02]}  Rxf4 {[%clk 0:01:22]} 30. Nxa6 {[%clk 0:00:46]}  Be5 {[%clk 0:01:14]} 31. Rc1 {[%clk 0:00:37]}  Rf7 {[%clk 0:00:53]} 32. Nb4 {[%clk 0:00:33]}  Qg7 {[%clk 0:00:41]} 33. Nd5 {[%clk 0:00:31]}  Qf8 {[%clk 0:00:18]} 34. Qg6 {[%clk 0:00:30]}  Bg3 {[%clk 0:00:11]} 35. Qd3 {[%clk 0:00:17]}  Rf5 {[%clk 0:00:05]} 36. Qxd4+ {[%clk 0:00:13]}  Kg8 {[%clk 0:00:06]} 37. Qe4 {[%clk 0:00:12]}  Re5 {[%clk 0:00:02]} 38. Qg6+ {[%clk 0:00:12]}  Kh8 {[%clk 0:00:03]} 39. Nf6 {[%clk 0:00:12]}  Re7 {[%clk 0:00:02]} 40. Rf1 {[%clk 0:00:11]}  Be5 {[%clk 0:00:02]} 41. Ng4 {[%clk 0:00:11]}  Bd4+ {[%clk 0:00:02]} 42. Nf2 {[%clk 0:00:06]}  Rf7 {[%clk 0:00:01]} 43. Qc2 {[%clk 0:00:06]}  Bxf2+ {[%clk 0:00:02]} 44. Rxf2 {[%clk 0:00:05]}  Rxf2 {[%clk 0:00:03]} 45. Qxf2 {[%clk 0:00:06]}  Qe7 {[%clk 0:00:04]} 46. Qd4+ {[%clk 0:00:05]}  Kg8 {[%clk 0:00:04]} 47. Qd5+ {[%clk 0:00:06]}  Kg7 {[%clk 0:00:05]} 48. Qxb5 {[%clk 0:00:06]}  Qe1+ {[%clk 0:00:06]} 49. Kh2 {[%clk 0:00:07]}  Qe4 {[%clk 0:00:07]} 50. Qd7+ {[%clk 0:00:06]} 1-0


[Site "https://www.chess.com"]

[Event "Titled Tuesday Blitz August 24 2021"]
[White "Vlassov, Nikolai"]
[Black "Todorovic, Bojan"]
[WhiteFideId "4103360"]
[BlackFideId "917087"]
[WhiteElo "2407"]
[BlackElo "2266"]
[Result "1/2-1/2"]
[Round "02"]
[TimeControl "180+1"]
[Date "2021.08.24"]
[WhiteClock "0:00:13"]
[BlackClock "0:00:05"]

1. e4 {[%clk 0:02:59]}  e5 {[%clk 0:02:59]} 2. Bc4 {[%clk 0:02:59]}  Nf6 {[%clk 0:02:57]} 3. d3 {[%clk 0:02:59]}  Nc6 {[%clk 0:02:56]} 4. Nf3 {[%clk 0:02:59]}  Be7 {[%clk 0:02:53]} 5. O-O {[%clk 0:02:59]}  O-O {[%clk 0:02:53]} 6. Re1 {[%clk 0:02:59]}  d6 {[%clk 0:02:53]} 7. a4 {[%clk 0:02:59]}  Be6 {[%clk 0:02:48]} 8. Nbd2 {[%clk 0:02:58]}  Bxc4 {[%clk 0:02:28]} 9. Nxc4 {[%clk 0:02:57]}  Nd7 {[%clk 0:02:28]} 10. a5 {[%clk 0:02:57]}  a6 {[%clk 0:02:28]} 11. c3 {[%clk 0:02:56]}  f5 {[%clk 0:02:20]} 12. Qb3 {[%clk 0:02:55]}  Nc5 {[%clk 0:02:07]} 13. Qc2 {[%clk 0:02:45]}  fxe4 {[%clk 0:02:01]} 14. dxe4 {[%clk 0:02:45]}  Rxf3 {[%clk 0:01:59]} 15. gxf3 {[%clk 0:02:45]}  Bg5 {[%clk 0:01:59]} 16. Be3 {[%clk 0:02:35]}  Ne6 {[%clk 0:01:58]} 17. Qb3 {[%clk 0:02:30]}  Kh8 {[%clk 0:01:51]} 18. Qxb7 {[%clk 0:02:28]}  Ne7 {[%clk 0:01:42]} 19. Rad1 {[%clk 0:02:23]}  Ng6 {[%clk 0:01:39]} 20. Kh1 {[%clk 0:02:17]}  Rb8 {[%clk 0:01:31]} 21. Qxa6 {[%clk 0:02:07]}  Bf4 {[%clk 0:01:31]} 22. Rg1 {[%clk 0:02:04]}  Qf6 {[%clk 0:01:20]} 23. Nd2 {[%clk 0:01:59]}  h6 {[%clk 0:01:10]} 24. b4 {[%clk 0:01:57]}  Qh4 {[%clk 0:01:04]} 25. Rg2 {[%clk 0:01:55]}  Qh3 {[%clk 0:01:03]} 26. Rdg1 {[%clk 0:01:41]}  Ng5 {[%clk 0:00:59]} 27. Qe2 {[%clk 0:01:20]}  Nh4 {[%clk 0:00:54]} 28. Bxf4 {[%clk 0:01:15]}  exf4 {[%clk 0:00:54]} 29. Rxg5 {[%clk 0:01:03]}  hxg5 {[%clk 0:00:53]} 30. Rxg5 {[%clk 0:01:03]}  g6 {[%clk 0:00:50]} 31. Rg4 {[%clk 0:00:53]}  Rf8 {[%clk 0:00:36]} 32. a6 {[%clk 0:00:46]}  Re8 {[%clk 0:00:32]} 33. Qf1 {[%clk 0:00:38]}  Qxf1+ {[%clk 0:00:32]} 34. Nxf1 {[%clk 0:00:39]}  Nxf3 {[%clk 0:00:32]} 35. Rxf4 {[%clk 0:00:39]}  Ne5 {[%clk 0:00:33]} 36. b5 {[%clk 0:00:38]}  Rb8 {[%clk 0:00:31]} 37. Rh4+ {[%clk 0:00:33]}  Kg7 {[%clk 0:00:31]} 38. f4 {[%clk 0:00:34]}  Nc4 {[%clk 0:00:28]} 39. Rg4 {[%clk 0:00:28]}  Rxb5 {[%clk 0:00:27]} 40. f5 {[%clk 0:00:28]}  Ne5 {[%clk 0:00:26]} 41. Rg1 {[%clk 0:00:17]}  Ra5 {[%clk 0:00:27]} 42. fxg6 {[%clk 0:00:18]}  Nxg6 {[%clk 0:00:22]} 43. h4 {[%clk 0:00:18]}  Kh6 {[%clk 0:00:20]} 44. Ne3 {[%clk 0:00:18]}  Nxh4 {[%clk 0:00:19]} 45. Ng4+ {[%clk 0:00:15]}  Kh7 {[%clk 0:00:15]} 46. Nf6+ {[%clk 0:00:15]}  Kh6 {[%clk 0:00:15]} 47. Rg4 {[%clk 0:00:12]}  Ng6 {[%clk 0:00:14]} 48. Ng8+ {[%clk 0:00:11]}  Kh7 {[%clk 0:00:13]} 49. e5 {[%clk 0:00:07]}  dxe5 {[%clk 0:00:10]} 50. Nf6+ {[%clk 0:00:07]}  Kh6 {[%clk 0:00:09]} 51. Ne8 {[%clk 0:00:05]}  Rxa6 {[%clk 0:00:09]} 52. Nxc7 {[%clk 0:00:05]}  Rc6 {[%clk 0:00:09]} 53. Nd5 {[%clk 0:00:06]}  Rc5 {[%clk 0:00:08]} 54. c4 {[%clk 0:00:06]}  Nf4 {[%clk 0:00:07]} 55. Nxf4 {[%clk 0:00:06]}  exf4 {[%clk 0:00:07]} 56. Rxf4 {[%clk 0:00:06]}  Kg5 {[%clk 0:00:07]} 57. Rd4 {[%clk 0:00:06]}  Kf5 {[%clk 0:00:08]} 58. Kg2 {[%clk 0:00:07]}  Ke5 {[%clk 0:00:08]} 59. Rh4 {[%clk 0:00:07]}  Rc7 {[%clk 0:00:07]} 60. Kf3 {[%clk 0:00:08]}  Kd6 {[%clk 0:00:07]} 61. Ke3 {[%clk 0:00:09]}  Kc5 {[%clk 0:00:06]} 62. Kd3 {[%clk 0:00:09]}  Rd7+ {[%clk 0:00:05]} 63. Kc3 {[%clk 0:00:09]}  Rg7 {[%clk 0:00:05]} 64. Rh5+ {[%clk 0:00:09]}  Kc6 {[%clk 0:00:05]} 65. Kb4 {[%clk 0:00:10]}  Rg6 {[%clk 0:00:05]} 66. Rd5 {[%clk 0:00:09]}  Kb6 {[%clk 0:00:05]} 67. Rb5+ {[%clk 0:00:09]}  Kc6 {[%clk 0:00:05]} 68. Ra5 {[%clk 0:00:09]}  Kb6 {[%clk 0:00:03]} 69. c5+ {[%clk 0:00:10]}  Kb7 {[%clk 0:00:04]} 70. Kb5 {[%clk 0:00:10]}  Rg1 {[%clk 0:00:03]} 71. c6+ {[%clk 0:00:11]}  Kc7 {[%clk 0:00:03]} 72. Ra7+ {[%clk 0:00:11]}  Kb8 {[%clk 0:00:03]} 73. Rb7+ {[%clk 0:00:11]}  Kc8 {[%clk 0:00:04]} 74. Rf7 {[%clk 0:00:11]}  Rb1+ {[%clk 0:00:04]} 75. Kc5 {[%clk 0:00:12]}  Rc1+ {[%clk 0:00:04]} 76. Kd5 {[%clk 0:00:12]}  Rd1+ {[%clk 0:00:05]} 77. Ke5 {[%clk 0:00:13]}  Re1+ {[%clk 0:00:05]} 78. Kd6 {[%clk 0:00:13]}  Rd1+ {[%clk 0:00:05]} 79. Ke7 {[%clk 0:00:14]}  Re1+ {[%clk 0:00:05]} 80. Kf6 {[%clk 0:00:14]}  Rf1+ {[%clk 0:00:05]} 81. Ke6 {[%clk 0:00:14]}  Rxf7 {[%clk 0:00:05]} 82. Kxf7 {[%clk 0:00:15]}  Kc7 {[%clk 0:00:05]} 83. Ke6 {[%clk 0:00:13]}  Kxc6 {[%clk 0:00:05]} 1/2-1/2


[Site "https://www.chess.com"]

[Event "Titled Tuesday Blitz August 24 2021"]
[White "Wagner, Dennis"]
[Black "Petesch, Gabriel"]
[WhiteFideId "24650684"]
[BlackFideId "2032465"]
[WhiteElo "2793"]
[BlackElo "2535"]
[Result "1-0"]
[Round "02"]
[TimeControl "180+1"]
[Date "2021.08.24"]
[WhiteClock "0:00:57"]
[BlackClock "0:00:11"]

1. Nf3 {[%clk 0:03:00]}  d5 {[%clk 0:02:54]} 2. g3 {[%clk 0:03:00]}  Nf6 {[%clk 0:02:52]} 3. Bg2 {[%clk 0:03:00]}  g6 {[%clk 0:02:48]} 4. b3 {[%clk 0:02:58]}  Bg7 {[%clk 0:02:48]} 5. Bb2 {[%clk 0:02:58]}  O-O {[%clk 0:02:49]} 6. c4 {[%clk 0:02:58]}  dxc4 {[%clk 0:02:30]} 7. bxc4 {[%clk 0:02:59]}  c5 {[%clk 0:02:30]} 8. O-O {[%clk 0:02:58]}  Nc6 {[%clk 0:02:29]} 9. d3 {[%clk 0:02:58]}  Bf5 {[%clk 0:02:14]} 10. Ne5 {[%clk 0:02:57]}  Qc7 {[%clk 0:01:43]} 11. Nxc6 {[%clk 0:02:54]}  bxc6 {[%clk 0:01:43]} 12. Nd2 {[%clk 0:02:54]}  Rab8 {[%clk 0:01:31]} 13. Nb3 {[%clk 0:02:53]}  Nd7 {[%clk 0:01:19]} 14. Bxg7 {[%clk 0:02:54]}  Kxg7 {[%clk 0:01:20]} 15. Qd2 {[%clk 0:02:54]}  f6 {[%clk 0:01:16]} 16. Qe3 {[%clk 0:02:54]}  Qd6 {[%clk 0:01:15]} 17. Rfb1 {[%clk 0:02:42]}  Rb4 {[%clk 0:01:11]} 18. a3 {[%clk 0:02:37]}  Rb6 {[%clk 0:01:07]} 19. Na5 {[%clk 0:02:23]}  Rfb8 {[%clk 0:00:41]} 20. Rxb6 {[%clk 0:02:23]}  Rxb6 {[%clk 0:00:42]} 21. h4 {[%clk 0:02:16]}  e5 {[%clk 0:00:31]} 22. Kh2 {[%clk 0:02:06]}  Ra6 {[%clk 0:00:31]} 23. Nb3 {[%clk 0:01:53]}  Rb6 {[%clk 0:00:31]} 24. Rb1 {[%clk 0:01:51]}  Qb8 {[%clk 0:00:27]} 25. Qf3 {[%clk 0:01:13]}  Rxb3 {[%clk 0:00:25]} 26. Rxb3 {[%clk 0:01:14]}  Qxb3 {[%clk 0:00:25]} 27. g4 {[%clk 0:01:15]}  Be6 {[%clk 0:00:24]} 28. g5 {[%clk 0:01:10]}  f5 {[%clk 0:00:16]} 29. Qxc6 {[%clk 0:01:10]}  Qb6 {[%clk 0:00:17]} 30. Qc8 {[%clk 0:01:03]}  Qb8 {[%clk 0:00:15]} 31. Qa6 {[%clk 0:01:03]}  Kf7 {[%clk 0:00:14]} 32. Bd5 {[%clk 0:00:59]}  e4+ {[%clk 0:00:14]} 33. Kg2 {[%clk 0:00:59]}  Qb6 {[%clk 0:00:13]} 34. Qc8 {[%clk 0:00:57]}  Qb8 {[%clk 0:00:11]} 35. Qxd7+ {[%clk 0:00:57]} 1-0


[Site "https://www.chess.com"]